[Event "Late-Titled-Tuesday-Blitz-October-03-2023"]
[Site "Chess.com"]
[Date "2023.10.03"]
[Round "1"]
[White "GaiozNigalidze"]
[Black "Caisachess"]
[Result "1-0"]
[WhiteElo "2749"]
[BlackElo "2413"]
[TimeControl "180+1"]
[EndTime "14:08:05 PDT"]
[Termination "GaiozNigalidze won by resignation"]

1. d4 {[%clk 0:03:00.9]} 1... d5 {[%clk 0:02:49.3]} 2. c4 {[%clk 0:03:00.7]}
2... c6 {[%clk 0:02:47.7]} 3. Nf3 {[%clk 0:02:57.9]} 3... Nf6 {[%clk 0:02:47.4]}
4. e3 {[%clk 0:02:58.2]} 4... e6 {[%clk 0:02:45.7]} 5. Nbd2 {[%clk 0:02:56.3]}
5... Nbd7 {[%clk 0:02:45.9]} 6. Be2 {[%clk 0:02:55.9]} 6... Bd6 {[%clk
0:02:44.5]} 7. O-O {[%clk 0:02:55.8]} 7... O-O {[%clk 0:02:45.2]} 8. cxd5 {[%clk
0:02:54.2]} 8... exd5 {[%clk 0:02:44.2]} 9. b3 {[%clk 0:02:50.7]} 9... Re8
{[%clk 0:02:43.6]} 10. Bb2 {[%clk 0:02:50.7]} 10... Qe7 {[%clk 0:02:37.7]} 11.
Qc2 {[%clk 0:02:43.4]} 11... Ba3 {[%clk 0:02:33]} 12. Bxa3 {[%clk 0:02:40.5]}
12... Qxa3 {[%clk 0:02:32.6]} 13. Bd3 {[%clk 0:02:38.6]} 13... Nf8 {[%clk
0:02:29.9]} 14. Rac1 {[%clk 0:02:33.3]} 14... a5 {[%clk 0:02:28.3]} 15. Nb1
{[%clk 0:02:21]} 15... Qd6 {[%clk 0:02:26.2]} 16. a4 {[%clk 0:02:21.3]} 16...
Ne4 {[%clk 0:02:21.7]} 17. Nbd2 {[%clk 0:02:10.1]} 17... f5 {[%clk 0:02:09.9]}
18. Ne5 {[%clk 0:02:04.5]} 18... Ng6 {[%clk 0:02:03.7]} 19. Ndf3 {[%clk
0:01:52.2]} 19... Be6 {[%clk 0:01:51]} 20. Nxg6 {[%clk 0:01:42.4]} 20... hxg6
{[%clk 0:01:49.4]} 21. Ne5 {[%clk 0:01:42.8]} 21... Bf7 {[%clk 0:01:45.9]} 22.
Bxe4 {[%clk 0:01:25.4]} 22... dxe4 {[%clk 0:01:45]} 23. f3 {[%clk 0:01:25.7]}
23... exf3 {[%clk 0:01:43.1]} 24. Rxf3 {[%clk 0:01:26.6]} 24... Bd5 {[%clk
0:01:38.6]} 25. Rg3 {[%clk 0:01:21.5]} 25... Re6 {[%clk 0:01:35.3]} 26. Qf2
{[%clk 0:01:06.7]} 26... Rae8 {[%clk 0:01:32.5]} 27. Rh3 {[%clk 0:01:02.6]}
27... Rxe5 {[%clk 0:01:30.8]} 28. dxe5 {[%clk 0:01:02.6]} 28... Qxe5 {[%clk
0:01:31]} 29. Qh4 {[%clk 0:00:57.9]} 29... Bxb3 {[%clk 0:01:25.5]} 30. Qh7+
{[%clk 0:00:55]} 30... Kf7 {[%clk 0:01:24.9]} 31. Rg3 {[%clk 0:00:55.5]} 31...
Re6 {[%clk 0:01:21.9]} 32. Qh8 {[%clk 0:00:43.3]} 32... Re8 {[%clk 0:01:16.9]}
33. Qh7 {[%clk 0:00:41.5]} 33... Qf6 {[%clk 0:01:14.6]} 34. Rb1 {[%clk
0:00:38.1]} 34... Qe6 {[%clk 0:01:11.2]} 35. h4 {[%clk 0:00:32.3]} 35... Re7
{[%clk 0:00:59.9]} 36. h5 {[%clk 0:00:29.2]} 36... Ke8 {[%clk 0:00:56.8]} 37.
Qxg6+ {[%clk 0:00:18.1]} 37... Qxg6 {[%clk 0:00:55.6]} 38. Rxg6 {[%clk 0:00:19]}
38... Bxa4 {[%clk 0:00:54.2]} 39. Kf2 {[%clk 0:00:17.3]} 39... Bb5 {[%clk
0:00:53.5]} 40. Ra1 {[%clk 0:00:17.1]} 40... a4 {[%clk 0:00:53.3]} 41. Kf3
{[%clk 0:00:17.8]} 41... Kf7 {[%clk 0:00:51.8]} 42. Kf4 {[%clk 0:00:17.6]} 42...
Rd7 {[%clk 0:00:49.6]} 43. Rg5 {[%clk 0:00:16.3]} 43... Kf6 {[%clk 0:00:46.3]}
44. Rxf5+ {[%clk 0:00:16.4]} 44... Ke6 {[%clk 0:00:45.3]} 45. Re5+ {[%clk
0:00:16.7]} 45... Kf6 {[%clk 0:00:45.2]} 46. g4 {[%clk 0:00:17.2]} 46... Rd2
{[%clk 0:00:43.5]} 47. g5+ {[%clk 0:00:17.3]} 47... Kf7 {[%clk 0:00:43.9]} 48.
g6+ {[%clk 0:00:16.5]} 48... Kf6 {[%clk 0:00:43.3]} 49. Rf5+ {[%clk 0:00:16.5]}
49... Ke6 {[%clk 0:00:42.8]} 50. e4 {[%clk 0:00:17.1]} 50... Rf2+ {[%clk
0:00:42.1]} 51. Kg5 {[%clk 0:00:17.4]} 51... Rg2+ {[%clk 0:00:41.6]} 52. Kh4
{[%clk 0:00:17.9]} 52... Rh2+ {[%clk 0:00:41.9]} 53. Kg3 {[%clk 0:00:18.4]}
53... Re2 {[%clk 0:00:40.4]} 54. h6 {[%clk 0:00:17.5]} 54... Re3+ {[%clk
0:00:25.9]} 55. Kf2 {[%clk 0:00:16]} 55... Re2+ {[%clk 0:00:24.8]} 56. Kf3
{[%clk 0:00:15.6]} 56... Rg2 {[%clk 0:00:15]} 57. Kxg2 {[%clk 0:00:14.7]} 1-0

[Event "Late-Titled-Tuesday-Blitz-October-03-2023"]
[Site "Chess.com"]
[Date "2023.10.03"]
[Round "1"]
[White "luizzy"]
[Black "FM_Kappeler"]
[Result "1/2-1/2"]
[WhiteElo "2623"]
[BlackElo "2357"]
[TimeControl "180+1"]
[EndTime "14:08:06 PDT"]
[Termination "Game drawn by repetition"]

1. b3 {[%clk 0:02:59.4]} 1... e6 {[%clk 0:02:59]} 2. Bb2 {[%clk 0:02:59.2]} 2...
Nf6 {[%clk 0:02:59.1]} 3. e3 {[%clk 0:02:59.2]} 3... d5 {[%clk 0:02:59.3]} 4.
Nf3 {[%clk 0:02:58.9]} 4... Be7 {[%clk 0:02:57.8]} 5. Be2 {[%clk 0:02:53.4]}
5... O-O {[%clk 0:02:57.6]} 6. O-O {[%clk 0:02:53.9]} 6... c5 {[%clk 0:02:57.4]}
7. Ne5 {[%clk 0:02:53.9]} 7... Nbd7 {[%clk 0:02:52.6]} 8. f4 {[%clk 0:02:44.3]}
8... b6 {[%clk 0:02:36.1]} 9. Nc6 {[%clk 0:02:39.5]} 9... Qe8 {[%clk 0:02:36.3]}
10. Nxe7+ {[%clk 0:02:38.6]} 10... Qxe7 {[%clk 0:02:35.7]} 11. d3 {[%clk
0:02:29.7]} 11... Bb7 {[%clk 0:02:35.2]} 12. Nd2 {[%clk 0:02:25.3]} 12... Rac8
{[%clk 0:02:30.2]} 13. Nf3 {[%clk 0:02:23.2]} 13... b5 {[%clk 0:02:29]} 14. Qe1
{[%clk 0:02:11.6]} 14... c4 {[%clk 0:02:24.5]} 15. bxc4 {[%clk 0:02:07.8]} 15...
bxc4 {[%clk 0:02:24.7]} 16. Qa5 {[%clk 0:02:02.3]} 16... cxd3 {[%clk 0:02:05.2]}
17. Bxd3 {[%clk 0:02:01.5]} 17... Qc5 {[%clk 0:02:03.9]} 18. Qd2 {[%clk
0:01:37.6]} 18... Nb6 {[%clk 0:01:53]} 19. Ne5 {[%clk 0:01:13.5]} 19... Nc4
{[%clk 0:01:47.9]} 20. Bxc4 {[%clk 0:01:07.9]} 20... dxc4 {[%clk 0:01:47]} 21.
Bd4 {[%clk 0:01:07.3]} 21... Qc7 {[%clk 0:01:35.3]} 22. Rab1 {[%clk 0:00:58.4]}
22... c3 {[%clk 0:01:26.3]} 23. Qe2 {[%clk 0:00:55.4]} 23... Bd5 {[%clk
0:01:19.6]} 24. a4 {[%clk 0:00:38.8]} 24... Ne4 {[%clk 0:01:18.8]} 25. Rb4
{[%clk 0:00:18.7]} 25... f6 {[%clk 0:01:01.6]} 26. Nf3 {[%clk 0:00:17.1]} 26...
Bc4 {[%clk 0:01:00.9]} 27. Rxc4 {[%clk 0:00:10.7]} 27... Qxc4 {[%clk 0:01:00.3]}
28. Qxc4 {[%clk 0:00:09.4]} 28... Rxc4 {[%clk 0:00:59.9]} 29. Ra1 {[%clk
0:00:10.3]} 29... Rb8 {[%clk 0:00:53.1]} 30. Kf1 {[%clk 0:00:08.9]} 30... Rb2
{[%clk 0:00:52.1]} 31. Ne1 {[%clk 0:00:09.2]} 31... a5 {[%clk 0:00:47.4]} 32.
Ke2 {[%clk 0:00:09.2]} 32... f5 {[%clk 0:00:37]} 33. Kd3 {[%clk 0:00:09.5]}
33... Rc8 {[%clk 0:00:36.3]} 34. Ra3 {[%clk 0:00:06.6]} 34... Nf2+ {[%clk
0:00:35]} 35. Ke2 {[%clk 0:00:06.9]} 35... Ne4 {[%clk 0:00:34.9]} 36. Kd3 {[%clk
0:00:07.4]} 36... Rb1 {[%clk 0:00:31.5]} 37. Nf3 {[%clk 0:00:06.8]} 37... Rd1+
{[%clk 0:00:30.2]} 38. Ke2 {[%clk 0:00:07.4]} 38... Rc1 {[%clk 0:00:24.7]} 39.
Ne1 {[%clk 0:00:06.9]} 39... Kf7 {[%clk 0:00:18]} 40. Rb3 {[%clk 0:00:07.3]}
40... h6 {[%clk 0:00:17.9]} 41. Rb7+ {[%clk 0:00:07.5]} 41... Kg6 {[%clk
0:00:18.1]} 42. Rxg7+ {[%clk 0:00:08]} 42... Kh5 {[%clk 0:00:17.3]} 43. h3
{[%clk 0:00:08.3]} 43... Rc4 {[%clk 0:00:15]} 44. Nf3 {[%clk 0:00:06.8]} 44...
Rxc2+ {[%clk 0:00:12.1]} 45. Kd3 {[%clk 0:00:07.2]} 45... Rxg2 {[%clk
0:00:07.9]} 46. Rxg2 {[%clk 0:00:03.9]} 46... c2 {[%clk 0:00:08.1]} 47. Rxc2
{[%clk 0:00:04.3]} 47... Rxa4 {[%clk 0:00:07.8]} 48. Rc6 {[%clk 0:00:03.7]}
48... Ra3+ {[%clk 0:00:08.1]} 49. Ke2 {[%clk 0:00:04.3]} 49... Ra2+ {[%clk
0:00:08.5]} 50. Kd3 {[%clk 0:00:04.3]} 50... Ra3+ {[%clk 0:00:08.2]} 51. Kc2
{[%clk 0:00:04.7]} 51... Ra2+ {[%clk 0:00:08.4]} 52. Kd3 {[%clk 0:00:04.8]}
52... Ra3+ {[%clk 0:00:08.2]} 1/2-1/2

[Event "Late-Titled-Tuesday-Blitz-October-03-2023"]
[Site "Chess.com"]
[Date "2023.10.03"]
[Round "1"]
[White "komogro"]
[Black "TigrVShlyape"]
[Result "0-1"]
[WhiteElo "2488"]
[BlackElo "2950"]
[TimeControl "180+1"]
[EndTime "14:08:07 PDT"]
[Termination "TigrVShlyape won on time"]

1. d4 {[%clk 0:02:58.8]} 1... g6 {[%clk 0:02:59.8]} 2. c4 {[%clk 0:02:58.4]}
2... Bg7 {[%clk 0:03:00.4]} 3. Nc3 {[%clk 0:02:59.3]} 3... d6 {[%clk 0:02:59.8]}
4. e4 {[%clk 0:02:59.9]} 4... c5 {[%clk 0:02:57.6]} 5. Nf3 {[%clk 0:03:00.4]}
5... Nc6 {[%clk 0:02:56.6]} 6. d5 {[%clk 0:02:59.3]} 6... Nd4 {[%clk 0:02:56.2]}
7. Be2 {[%clk 0:02:59.2]} 7... Nxe2 {[%clk 0:02:54.9]} 8. Qxe2 {[%clk
0:02:59.2]} 8... Bg4 {[%clk 0:02:53.4]} 9. O-O {[%clk 0:02:58.9]} 9... Nf6
{[%clk 0:02:33.1]} 10. Bf4 {[%clk 0:02:52.3]} 10... Nd7 {[%clk 0:02:31.1]} 11.
Bg3 {[%clk 0:02:47.8]} 11... Bxc3 {[%clk 0:02:28.6]} 12. bxc3 {[%clk 0:02:47.8]}
12... f6 {[%clk 0:02:26.6]} 13. h3 {[%clk 0:02:32.6]} 13... Bxf3 {[%clk
0:02:22.6]} 14. Qxf3 {[%clk 0:02:33.5]} 14... Qa5 {[%clk 0:02:21.7]} 15. Rfc1
{[%clk 0:02:18.8]} 15... O-O-O {[%clk 0:02:19.6]} 16. a4 {[%clk 0:02:15.6]}
16... Kb8 {[%clk 0:02:16.4]} 17. Rcb1 {[%clk 0:02:13.8]} 17... Ka8 {[%clk
0:02:15.5]} 18. Rb5 {[%clk 0:02:12.5]} 18... Qc7 {[%clk 0:02:14.8]} 19. a5
{[%clk 0:02:12.8]} 19... h5 {[%clk 0:02:07.3]} 20. Rab1 {[%clk 0:02:07.4]} 20...
Rb8 {[%clk 0:02:06.1]} 21. Bh2 {[%clk 0:01:55.3]} 21... a6 {[%clk 0:02:04.3]}
22. R5b3 {[%clk 0:01:48.8]} 22... Qxa5 {[%clk 0:02:01.8]} 23. Qe2 {[%clk
0:01:43.3]} 23... Ka7 {[%clk 0:01:54.6]} 24. Qb2 {[%clk 0:01:42.3]} 24... Qc7
{[%clk 0:01:51]} 25. Bf4 {[%clk 0:01:41.8]} 25... g5 {[%clk 0:01:48.1]} 26. Be3
{[%clk 0:01:40.6]} 26... Ne5 {[%clk 0:01:45.1]} 27. Qe2 {[%clk 0:01:30.3]} 27...
g4 {[%clk 0:01:36.9]} 28. h4 {[%clk 0:01:24.8]} 28... Ng6 {[%clk 0:01:33.4]} 29.
g3 {[%clk 0:01:22.5]} 29... Ne5 {[%clk 0:01:33.2]} 30. Kg2 {[%clk 0:01:21.7]}
30... Qd7 {[%clk 0:01:24.9]} 31. Bf4 {[%clk 0:01:18.7]} 31... Ng6 {[%clk
0:01:19]} 32. Be3 {[%clk 0:01:18.2]} 32... Rhf8 {[%clk 0:01:17.4]} 33. Qb2
{[%clk 0:01:13.5]} 33... Qc7 {[%clk 0:01:15.4]} 34. Qc2 {[%clk 0:01:03]} 34...
Ne5 {[%clk 0:01:01.2]} 35. Qe2 {[%clk 0:00:56.2]} 35... Qd7 {[%clk 0:01:00]} 36.
Ra3 {[%clk 0:00:53.5]} 36... f5 {[%clk 0:00:47.7]} 37. Qa2 {[%clk 0:00:44.1]}
37... fxe4 {[%clk 0:00:42]} 38. Ra1 {[%clk 0:00:44]} 38... Qc8 {[%clk
0:00:37.4]} 39. Ra5 {[%clk 0:00:34.2]} 39... Nd3 {[%clk 0:00:32.4]} 40. Qa3
{[%clk 0:00:24.6]} 40... Ra8 {[%clk 0:00:29.2]} 41. Qb3 {[%clk 0:00:20.1]} 41...
Kb8 {[%clk 0:00:27.4]} 42. R1a2 {[%clk 0:00:17.5]} 42... Kc7 {[%clk 0:00:26.6]}
43. Qd1 {[%clk 0:00:17]} 43... b6 {[%clk 0:00:26.1]} 44. R5a3 {[%clk 0:00:15.8]}
44... Qb7 {[%clk 0:00:25.4]} 45. Bg5 {[%clk 0:00:16.4]} 45... Kd7 {[%clk
0:00:24.2]} 46. Qe2 {[%clk 0:00:16.5]} 46... Rxf2+ {[%clk 0:00:21.9]} 47. Qxf2
{[%clk 0:00:14.2]} 47... Nxf2 {[%clk 0:00:21.9]} 48. Kxf2 {[%clk 0:00:15]} 48...
b5 {[%clk 0:00:20.9]} 49. Re2 {[%clk 0:00:14]} 49... bxc4 {[%clk 0:00:18.4]} 50.
Rxe4 {[%clk 0:00:14.1]} 50... Rf8+ {[%clk 0:00:18.5]} 51. Kg2 {[%clk 0:00:14]}
51... Qb2+ {[%clk 0:00:18.3]} 0-1

[Event "Late-Titled-Tuesday-Blitz-October-03-2023"]
[Site "Chess.com"]
[Date "2023.10.03"]
[Round "1"]
[White "AlejandroBalde"]
[Black "PositionalPanther"]
[Result "0-1"]
[WhiteElo "2104"]
[BlackElo "2529"]
[TimeControl "180+1"]
[EndTime "14:08:08 PDT"]
[Termination "PositionalPanther won by resignation"]

1. e4 {[%clk 0:02:59.3]} 1... e6 {[%clk 0:02:59.8]} 2. d4 {[%clk 0:02:58.5]}
2... d5 {[%clk 0:03:00.3]} 3. exd5 {[%clk 0:02:58.8]} 3... exd5 {[%clk
0:03:01.2]} 4. c4 {[%clk 0:02:59.3]} 4... Nf6 {[%clk 0:03:00.6]} 5. Nc3 {[%clk
0:02:59.1]} 5... Bb4 {[%clk 0:03:00.4]} 6. Nf3 {[%clk 0:02:58.2]} 6... O-O
{[%clk 0:03:00.4]} 7. Be2 {[%clk 0:02:53.1]} 7... dxc4 {[%clk 0:03:00.6]} 8. O-O
{[%clk 0:02:52]} 8... h6 {[%clk 0:02:59.3]} 9. Bxc4 {[%clk 0:02:48.7]} 9... Bg4
{[%clk 0:02:56.5]} 10. Be3 {[%clk 0:02:45.4]} 10... Nc6 {[%clk 0:02:55.9]} 11.
a3 {[%clk 0:02:44.4]} 11... Bd6 {[%clk 0:02:47.4]} 12. h3 {[%clk 0:02:38.4]}
12... Bh5 {[%clk 0:02:46.3]} 13. Be2 {[%clk 0:02:16.8]} 13... Bg6 {[%clk
0:02:44.5]} 14. Bd3 {[%clk 0:02:09.9]} 14... Bxd3 {[%clk 0:02:43.7]} 15. Qxd3
{[%clk 0:02:09.8]} 15... a6 {[%clk 0:02:43.9]} 16. b4 {[%clk 0:01:59.8]} 16...
Re8 {[%clk 0:02:42.3]} 17. Rad1 {[%clk 0:01:49.8]} 17... Qd7 {[%clk 0:02:38.9]}
18. d5 {[%clk 0:01:43]} 18... Ne5 {[%clk 0:02:35.3]} 19. Nxe5 {[%clk 0:01:42.3]}
19... Bxe5 {[%clk 0:02:36.2]} 20. Bd4 {[%clk 0:01:38.3]} 20... Rad8 {[%clk
0:02:33.4]} 21. f4 {[%clk 0:01:32.2]} 21... Bxd4+ {[%clk 0:02:31.6]} 22. Qxd4
{[%clk 0:01:32.4]} 22... c6 {[%clk 0:02:21]} 23. Rfe1 {[%clk 0:01:22.9]} 23...
Rxe1+ {[%clk 0:02:18.2]} 24. Rxe1 {[%clk 0:01:23]} 24... Nxd5 {[%clk 0:02:10.1]}
25. Nxd5 {[%clk 0:01:19.3]} 25... cxd5 {[%clk 0:02:03.6]} 26. Qb6 {[%clk
0:01:18.3]} 26... d4 {[%clk 0:01:56.5]} 27. f5 {[%clk 0:01:06.6]} 27... d3
{[%clk 0:01:53.6]} 28. f6 {[%clk 0:01:06.8]} 28... d2 {[%clk 0:01:53.7]} 29. Rd1
{[%clk 0:01:07]} 29... g6 {[%clk 0:01:42.3]} 30. Qe3 {[%clk 0:01:02.8]} 30...
Kh7 {[%clk 0:01:29.9]} 31. Qe7 {[%clk 0:00:32.4]} 31... Qd4+ {[%clk 0:01:27.7]}
32. Kh1 {[%clk 0:00:31.5]} 32... Rd7 {[%clk 0:01:12.7]} 33. Qe2 {[%clk 0:00:14]}
33... Qxf6 {[%clk 0:01:05.1]} 34. Rxd2 {[%clk 0:00:14]} 34... Rxd2 {[%clk
0:00:58.1]} 35. Qxd2 {[%clk 0:00:14.2]} 35... Qa1+ {[%clk 0:00:58.5]} 36. Kh2
{[%clk 0:00:13.3]} 36... Qxa3 {[%clk 0:00:53.3]} 37. Qd7 {[%clk 0:00:10.8]}
37... Qb3 {[%clk 0:00:46.5]} 38. Qxb7 {[%clk 0:00:09.4]} 38... a5 {[%clk
0:00:45.8]} 39. b5 {[%clk 0:00:09.1]} 39... a4 {[%clk 0:00:45.4]} 40. b6 {[%clk
0:00:09.4]} 40... a3 {[%clk 0:00:45.5]} 41. Qa6 {[%clk 0:00:05.2]} 41... a2
{[%clk 0:00:43.3]} 42. b7 {[%clk 0:00:05.6]} 42... Qb2 {[%clk 0:00:29.9]} 43.
Qa7 {[%clk 0:00:04.1]} 43... Kg7 {[%clk 0:00:24.2]} 44. b8=Q {[%clk 0:00:03.8]}
44... Qxb8+ {[%clk 0:00:23.1]} 45. Qxb8 {[%clk 0:00:04.4]} 45... a1=Q {[%clk
0:00:23.3]} 46. Qb4 {[%clk 0:00:05.1]} 46... Qf6 {[%clk 0:00:23.8]} 47. Qg4
{[%clk 0:00:04.4]} 47... h5 {[%clk 0:00:24.1]} 48. Qf3 {[%clk 0:00:04.3]} 48...
Qd6+ {[%clk 0:00:24.3]} 49. Qg3 {[%clk 0:00:04.2]} 49... Qd5 {[%clk 0:00:24.4]}
50. Qc3+ {[%clk 0:00:04.4]} 50... Kh7 {[%clk 0:00:24.5]} 51. Qg3 {[%clk
0:00:04.5]} 51... Qe6 {[%clk 0:00:24.4]} 52. Qf3 {[%clk 0:00:04.6]} 52... f6
{[%clk 0:00:22.4]} 53. Qb7+ {[%clk 0:00:04.5]} 53... Kh6 {[%clk 0:00:22.3]} 54.
Qf3 {[%clk 0:00:05.1]} 54... g5 {[%clk 0:00:21.8]} 55. Qa8 {[%clk 0:00:03.5]}
55... h4 {[%clk 0:00:18.1]} 56. Qh8+ {[%clk 0:00:03.3]} 56... Kg6 {[%clk
0:00:18.7]} 57. Qb8 {[%clk 0:00:03]} 57... Qe5+ {[%clk 0:00:18.6]} 58. Qxe5
{[%clk 0:00:02.5]} 58... fxe5 {[%clk 0:00:19.5]} 59. Kg1 {[%clk 0:00:03.2]}
59... Kf5 {[%clk 0:00:20.4]} 60. Kf2 {[%clk 0:00:03.8]} 60... Kf4 {[%clk
0:00:20.8]} 61. Ke2 {[%clk 0:00:03.2]} 61... Kg3 {[%clk 0:00:20.7]} 62. Kf1
{[%clk 0:00:03.3]} 62... e4 {[%clk 0:00:20.8]} 63. Kg1 {[%clk 0:00:03.6]} 63...
e3 {[%clk 0:00:21.1]} 64. Kf1 {[%clk 0:00:04.1]} 64... e2+ {[%clk 0:00:21.6]}
0-1

[Event "Late-Titled-Tuesday-Blitz-October-03-2023"]
[Site "Chess.com"]
[Date "2023.10.03"]
[Round "1"]
[White "MathiasWomacka"]
[Black "canary2016"]
[Result "1/2-1/2"]
[WhiteElo "2525"]
[BlackElo "2123"]
[TimeControl "180+1"]
[EndTime "14:08:13 PDT"]
[Termination "Game drawn by stalemate"]

1. e4 {[%clk 0:02:58.2]} 1... c5 {[%clk 0:02:59]} 2. Nf3 {[%clk 0:02:57.3]} 2...
d6 {[%clk 0:02:58.6]} 3. d4 {[%clk 0:02:53.5]} 3... cxd4 {[%clk 0:02:58.1]} 4.
Nxd4 {[%clk 0:02:54.3]} 4... Nf6 {[%clk 0:02:58.4]} 5. Nc3 {[%clk 0:02:54.2]}
5... Nc6 {[%clk 0:02:58.7]} 6. Be2 {[%clk 0:02:52]} 6... g6 {[%clk 0:02:47.8]}
7. Nb3 {[%clk 0:02:50]} 7... Bg7 {[%clk 0:02:47.5]} 8. O-O {[%clk 0:02:50.5]}
8... O-O {[%clk 0:02:46.4]} 9. Re1 {[%clk 0:02:51]} 9... e6 {[%clk 0:02:27.2]}
10. Bg5 {[%clk 0:02:36.8]} 10... Qb6 {[%clk 0:02:24.9]} 11. Qxd6 {[%clk
0:02:24.8]} 11... Rd8 {[%clk 0:02:08.7]} 12. Qf4 {[%clk 0:02:15.8]} 12... e5
{[%clk 0:01:59.2]} 13. Qh4 {[%clk 0:02:14.1]} 13... Nd4 {[%clk 0:01:51.9]} 14.
Nd5 {[%clk 0:01:55.4]} 14... Rxd5 {[%clk 0:01:37.6]} 15. exd5 {[%clk 0:01:52]}
15... Nxd5 {[%clk 0:01:37.2]} 16. Nxd4 {[%clk 0:01:38.5]} 16... exd4 {[%clk
0:01:36.3]} 17. Bc4 {[%clk 0:01:21.7]} 17... Be6 {[%clk 0:01:35.5]} 18. Bb3
{[%clk 0:01:21.2]} 18... Rc8 {[%clk 0:01:25.7]} 19. h3 {[%clk 0:01:15]} 19... a5
{[%clk 0:00:27.2]} 20. Rad1 {[%clk 0:01:09.5]} 20... Qb5 {[%clk 0:00:23.1]} 21.
a4 {[%clk 0:00:58.6]} 21... Qb6 {[%clk 0:00:16.7]} 22. Re4 {[%clk 0:00:42.8]}
22... Qc6 {[%clk 0:00:15.6]} 23. Rde1 {[%clk 0:00:41.4]} 23... b5 {[%clk
0:00:15.1]} 24. axb5 {[%clk 0:00:40.3]} 24... Qxb5 {[%clk 0:00:15.4]} 25. Ra1
{[%clk 0:00:26.8]} 25... Qc6 {[%clk 0:00:10.7]} 26. Rxa5 {[%clk 0:00:23.4]}
26... Qb6 {[%clk 0:00:05.2]} 27. Rxd5 {[%clk 0:00:20.5]} 27... Bxd5 {[%clk
0:00:05.4]} 28. Bxd5 {[%clk 0:00:21]} 28... Qxb2 {[%clk 0:00:05.6]} 29. Bf6
{[%clk 0:00:17.1]} 29... Qc1+ {[%clk 0:00:03]} 30. Kh2 {[%clk 0:00:16.3]} 30...
Qxc2 {[%clk 0:00:02.5]} 31. Bxg7 {[%clk 0:00:13.8]} 31... Kxg7 {[%clk 0:00:03]}
32. Qe7 {[%clk 0:00:13.2]} 32... Qc7+ {[%clk 0:00:02.6]} 33. Qxc7 {[%clk
0:00:09.8]} 33... Rxc7 {[%clk 0:00:03]} 34. Rxd4 {[%clk 0:00:10.4]} 34... Rd7
{[%clk 0:00:03]} 35. Rd3 {[%clk 0:00:11.3]} 35... Kf6 {[%clk 0:00:03.1]} 36. Be4
{[%clk 0:00:11.2]} 36... Re7 {[%clk 0:00:03.1]} 37. Bf3 {[%clk 0:00:10.2]} 37...
Re8 {[%clk 0:00:02.6]} 38. Rd7 {[%clk 0:00:09.6]} 38... Re5 {[%clk 0:00:01.6]}
39. Kg3 {[%clk 0:00:08.7]} 39... Rg5+ {[%clk 0:00:01.1]} 40. Kf4 {[%clk
0:00:08.3]} 40... Rf5+ {[%clk 0:00:01.6]} 41. Ke3 {[%clk 0:00:08.3]} 41... Re5+
{[%clk 0:00:02.2]} 42. Kd4 {[%clk 0:00:08.3]} 42... Re1 {[%clk 0:00:02]} 43. Bd5
{[%clk 0:00:07.7]} 43... Rd1+ {[%clk 0:00:02.2]} 44. Ke3 {[%clk 0:00:07]} 44...
Re1+ {[%clk 0:00:02.3]} 45. Kf3 {[%clk 0:00:06.8]} 45... Rd1 {[%clk 0:00:01.9]}
46. Rxf7+ {[%clk 0:00:05.8]} 46... Ke5 {[%clk 0:00:01.7]} 47. Rd7 {[%clk
0:00:06.3]} 47... Rxd5 {[%clk 0:00:01.4]} 48. Rxd5+ {[%clk 0:00:06.2]} 48...
Kxd5 {[%clk 0:00:02.3]} 49. Kf4 {[%clk 0:00:06.4]} 49... Ke6 {[%clk 0:00:02.7]}
50. Kg5 {[%clk 0:00:07.2]} 50... Kf7 {[%clk 0:00:02.9]} 51. Kh6 {[%clk
0:00:07.1]} 51... Kg8 {[%clk 0:00:03.5]} 52. g4 {[%clk 0:00:07]} 52... Kh8
{[%clk 0:00:03.7]} 53. f4 {[%clk 0:00:07]} 53... Kg8 {[%clk 0:00:03.1]} 54. f5
{[%clk 0:00:07]} 54... gxf5 {[%clk 0:00:02.2]} 55. gxf5 {[%clk 0:00:07.9]} 55...
Kf7 {[%clk 0:00:02.1]} 56. Kxh7 {[%clk 0:00:07.8]} 56... Kf6 {[%clk 0:00:02.4]}
57. h4 {[%clk 0:00:05.7]} 57... Kxf5 {[%clk 0:00:02.9]} 58. h5 {[%clk 0:00:06]}
58... Kf6 {[%clk 0:00:03.4]} 59. Kh6 {[%clk 0:00:05]} 59... Kf7 {[%clk
0:00:03.6]} 60. Kg5 {[%clk 0:00:05.9]} 60... Kg7 {[%clk 0:00:04]} 61. h6+ {[%clk
0:00:06.4]} 61... Kh7 {[%clk 0:00:04.3]} 62. Kh5 {[%clk 0:00:07.3]} 62... Kh8
{[%clk 0:00:04.4]} 63. Kg6 {[%clk 0:00:08.2]} 63... Kg8 {[%clk 0:00:04.9]} 64.
h7+ {[%clk 0:00:09]} 64... Kh8 {[%clk 0:00:05.8]} 65. Kh6 {[%clk 0:00:09.5]}
1/2-1/2